{"text_format":"1","workbook":"xlsx","n_sheets":3,"sheets":["SubNaucz","Baza","Tlo"],"not_rendered":{"charts":0,"images":0,"macros":1,"external_links":0,"defined_names":1,"comments":0,"pivot_tables":0},"unopened":[],"bounds":{"document_bytes":16777216,"sheet_cells":100000,"rows_first":2000,"rows_last":500,"rows_between":2000,"halvings":0,"cell_chars":16384,"cell_head_chars":4096},"cells_cut":0,"cells_raw":0,"read":"whole","date_system":"1900"}

{"sheet":"SubNaucz","index":0,"n_rows":35,"n_cols":9,"rows_kept":35,"cut":false,"hidden":true,"merged":[]}
[2]
[]
[]
[]
[]
[]
[null,"Imię",{"$f":"INDEX(Baza!B:B,$A$1)","v":0},null,"Pensum",{"$f":"INDEX(Baza!D:D,$A$1)","v":0},null,"Data generowania raportu",{"$f":"TODAY()","v":"2022-01-03"}]
[]
[null,"Nazwisko",{"$f":"INDEX(Baza!C:C,$A$1)","v":0},null,"Stopień awansu",null,{"$f":"INDEX(Baza!AM:AM,$A$1)","v":0},"Numer Umowy",{"$f":"INDEX(Baza!AQ:AQ,$A$1)","v":0}]
[]
[]
[null,{"$f":"\"ETAT SUBWENCYJNY  =  \" & TEXT(D31,\"0,00\")","v":"ETAT SUBWENCYJNY  =  0,00"},null,{"$f":"\"ETAT NIESUBWENCYJNY  =  \" & TEXT(D35, \"0,00\")","v":"ETAT NIESUBWENCYJNY  =  0,00"},null,null,"liczba wymiaru godzin nauczyciela z obowiązku (kolumna C) dzielona przez pensum (kolumna D)\n↓","liczba dzieci 6 letnich i więcej w wych. przedsz. (kolumna E) dzielona przez liczbę dzieci ogółem w wych. przedsz. (kolumna F) pomnożona przez iloraz 25/22\n↓","dla wychowania przedszkolnego - etat z obowiązku (kolumna G) pomnożony przez wskaźnik 6-latków (kolumna H); pozostałe obowiązki bez mnożenia przez wskaźnik\n↓"]
[null,"obowiązki w placówkach","wymiar godzin nauczyciela z godzinami ponadwymiarowymi","pensum nauczyciela - art. 42 ust. 3 lub ust. 5c Karty Nauczyciela, np. 18","liczba dzieci 6 letnich i więcej w wychowaniu przedszkolnym","liczba dzieci ogółem w wychowaniu przedszkolnym","etat z obowiązku","wskaźnik 6-latków","etat subwencyjny z obowiązku "]
[null,"bez wychowania przedszkolnego",{"$f":"INDEX(Baza!E:E,$A$1)","v":0},{"$f":"IF($C14>0,INDEX(Baza!D:D,$A$1),0)","v":0},null,null,{"$f":"ROUND(IF($C14>0,C14/D14,0),2)","v":0},null,{"$f":"G14","v":0}]
[null,"wychowanie przedszkolne w placówce nr 1",{"$f":"INDEX(Baza!F:F,$A$1)","v":0},{"$f":"IF($C15>0,INDEX(Baza!D:D,$A$1),0)","v":0},{"$f":"IF($C15>0,INDEX(Baza!J:J,$A$1),0)","v":0},{"$f":"IF($C15>0,INDEX(Baza!N:N,$A$1),0)","v":0},{"$f":"ROUND(IF($C15>0,C15/D15,0),2)","v":0},{"$f":"IFERROR((E15/F15)*(25/22),0)","v":0},{"$f":"IFERROR(G15*H15,0)","v":0}]
[null,"wychowanie przedszkolne w placówce nr 2",{"$f":"INDEX(Baza!G:G,$A$1)","v":0},{"$f":"IF($C16>0,INDEX(Baza!D:D,$A$1),0)","v":0},{"$f":"IF($C16>0,INDEX(Baza!K:K,$A$1),0)","v":0},{"$f":"IF($C16>0,INDEX(Baza!O:O,$A$1),0)","v":0},{"$f":"ROUND(IF($C16>0,C16/D16,0),2)","v":0},{"$f":"IFERROR((E16/F16)*(25/22),0)","v":0},{"$f":"IFERROR(G16*H16,0)","v":0}]
[null,"wychowanie przedszkolne w placówce nr 3",{"$f":"INDEX(Baza!H:H,$A$1)","v":0},{"$f":"IF($C17>0,INDEX(Baza!D:D,$A$1),0)","v":0},{"$f":"IF($C17>0,INDEX(Baza!L:L,$A$1),0)","v":0},{"$f":"IF($C17>0,INDEX(Baza!P:P,$A$1),0)","v":0},{"$f":"ROUND(IF($C17>0,C17/D17,0),2)","v":0},{"$f":"IFERROR((E17/F17)*(25/22),0)","v":0},{"$f":"IFERROR(G17*H17,0)","v":0}]
[null,"wychowanie przedszkolne w placówce nr 4",{"$f":"INDEX(Baza!I:I,$A$1)","v":0},{"$f":"IF($C18>0,INDEX(Baza!D:D,$A$1),0)","v":0},{"$f":"IF($C18>0,INDEX(Baza!M:M,$A$1),0)","v":0},{"$f":"IF($C18>0,INDEX(Baza!Q:Q,$A$1),0)","v":0},{"$f":"ROUND(IF($C18>0,C18/D18,0),2)","v":0},{"$f":"IFERROR((E18/F18)*(25/22),0)","v":0},{"$f":"IFERROR(G18*H18,0)","v":0}]
[null,"razem",{"$f":"SUM(C14:C18)","v":0},{"$f":"MAX(D14:D18)","v":0},null,null,{"$f":"SUM(G14:G18)","v":0},null,{"$f":"SUM(I14:I18)","v":0}]
[]
[null,"WSKAŹNIK DO SUBWENCJI"]
[null,null,"etat subwencyjny z obowiązku\n (komórka I19)","etat z obowiązku (komórka G19)","wskaźnik do subwencji","opis wyliczenia"]
[null,"dla umowy nauczyciela ",{"$f":"I19","v":0},{"$f":"G19","v":0},{"$f":"IFERROR(C23/D23,0)","v":0},"etat subwencyjny \nz obowiazku dzielony przez etat z obowiązku "]
[]
[null,"ETAT Z UMOWY BEZ GODZIN PONADWYMIAROWYCH"]
[null,null,"licznik ","mianownik","etat z umowy","opis wyliczenia"]
[null,"wymiar etatu z umowy ",{"$f":"IF(C19>D19,D19,C19)","v":0},{"$f":"D19","v":0},{"$f":"IFERROR(ROUND(C27/D27,2),0)","v":0},"bez godzin ponadwymiaro\nwych "]
[]
[null,"ETAT SUBWENCYJNY"]
[null,"etat z umowy (komórka E27)","wskaźnik do subwencji (komórka E23)","etat subwencyjny","opis wyliczenia"]
[null,{"$f":"E27","v":0},{"$f":"E23","v":0},{"$f":"ROUND(IF(B31*C31>1,1,IF(B31*C31>B31,B31,B31*C31)),2)","v":0},"mnożymy etat z umowy przez wskaźnik do subwencji "]
[]
[null,"ETAT NIESUBWENCYJNY"]
[null,"etat z umowy ","etat subwencyjny","etat niesubwencyjny","opis wyliczenia"]
[null,{"$f":"E27","v":0},{"$f":"D31","v":0},{"$f":"B35-C35","v":0},"pozstała cześć etatu to etat niesubwencyjny (różnica etatu z umowy i etatu subwencyjnego)"]

{"sheet":"Baza","index":1,"n_rows":1,"n_cols":43,"rows_kept":1,"cut":false,"hidden":true,"merged":[]}
["LP","Imie","Nazwisko","Pensum","Lb_godz_0","Lb_godz_1","Lb_godz_2","Lb_godz_3","Lb_godz_4","Lb_sz_1","Lb_sz_2","Lb_sz_3","Lb_sz_4","Lb_prz_1","Lb_prz_2","Lb_prz_3","Lb_prz_4","Total_godz","Et_ob_0","Et_ob_1","Et_ob_2","Et_ob_3","Et_ob_4","Total_et_ob","Wsk_sz_1","Wsk_sz_2","Wsk_sz_3","Wsk_sz_4","Et_sub_ob_0","Et_sub_ob_1","Et_sub_ob_2","Et_sub_ob_3","Et_sub_ob_4","Total_et_sub_ob","Wsk_subw","Etat_zatr","Etat_subw","Etat_niesubw","Stopien_awansu","Wych_przed_TAK","Wych_przed_NIE","Kolumna1","Kolumna2"]

{"sheet":"Tlo","index":2,"n_rows":0,"n_cols":0,"rows_kept":0,"cut":false,"hidden":false,"merged":[]}